[Event "Czech Extraliga 2023-24"]
[Site "Czech Republic"]
[Date "2024.04.06"]
[Round "9.7"]
[White "Jurcik, Martin"]
[Black "Kaczur, Florian"]
[Result "0-1"]
[ECO "C47"]
[WhiteElo "2361"]
[BlackElo "2532"]
[Annotator "TA"]
[PlyCount "79"]
[EventDate "2023.10.14"]
[EventCountry "CZE"]
[SourceTitle "playchess.com"]
[Source "ChessBase"]
[SourceQuality "1"]
[TimeControl "40/5400+30:1800+30"]

{[%evp 18,79,51,50,43,53,43,47,56,22,18,14,16,28,25,15,29,0,12,9,10,0,0,0,0,-8,0,0,6,-16,10,-38,-24,-22,-18,-21,-11,-11,-16,-11,-24,-79,-30,-47,0,-90,-82,-173,-35,-149,-96,-272,-203,-583,-561,-872,-862,-827,-810,-29986,-29987,-29987,-29988,-29991]} 1. e4 {[%emt 0:00:05]} e5 {[%emt 0:00:33]} 2. Nf3 {[%emt 0:00:41]} Nc6 {[%emt 0:00:06]} 3. Nc3 {[%emt 0:00:43]} Nf6 {[%emt 0:00:11]} 4. d4 {[%emt 0:00:30]} Bb4 {[%emt 0:01:59]} 5. Nxe5 {[%emt 0:03:26]} Qe7 {[%emt 0:00:18]} 6. Qd3 {[%emt 0:02:10]} Nxe5 {[%emt 0:00:10]} 7. dxe5 {[%emt 0:00:08]} Qxe5 {[%emt 0:00:05]} 8. Bd2 {[%emt 0:01:41][%cal Bc1d2,Bd2c3,Bc3d4][%mdl 32]} O-O {[%emt 0:00:08]} 9. O-O-O {[%emt 0:08:27]} Bxc3 {[%emt 0:01:13]} 10. Bxc3 {[%emt 0:01:52]} Qf4+ {[%emt 0:00:11]} 11. Rd2 {[%emt 0:09:18]} Re8 {[%emt 0:00:12]} 12. f3 {[%emt 0:17:01]} d5 {[%emt 0:00:15] White is slightly better.} 13. e5 {[%emt 0:01:05][%cal Og2g3] Threatening g3!} (13. exd5 $2 Re1#) 13... c6 {[%emt 0:00:16]} 14. Qd4 {[%emt 0:06:29]} (14. exf6 $2 Re1#) 14... Qxd4 {[%emt 0:10:13]} 15. Bxd4 {[%emt 0:00:12]} Nd7 {[%emt 0:01:10] Black is weak on the dark squares} 16. f4 {[%emt 0:02:32]} b6 {[%emt 0:06:42]} 17. g3 {[%emt 0:08:08]} f6 {[%emt 0:04:06]} 18. exf6 {[%emt 0:04:56]} Nxf6 {[%emt 0:00:05]} 19. Bg2 {[%emt 0:20:16]} Bf5 {[%emt 0:04:32]} 20. b3 {[%emt 0:07:12]} Be4 {[%emt 0:01:50]} 21. Bxe4 {[%emt 0:01:06]} Nxe4 {[%emt 0:16:57]} 22. Re2 {[%emt 0:00:24]} b5 {[%emt 0:00:01]} 23. Rhe1 {[%emt 0:00:41][%cal Oc2c4]} a5 {[%emt 0:00:06]} 24. Kb2 {[%emt 0:00:51]} (24. c4 $11) 24... Kf7 {[%emt 0:00:06]} 25. a3 {[%emt 0:02:02]} g6 {[%emt 0:00:22]} 26. Be5 {[%emt 0:00:35]} Nc5 {[%emt 0:01:00]} (26... a4 {keeps more tension.} 27. c4 axb3 28. cxd5 cxd5 29. Rc1 Rec8) 27. Bd4 {[%emt 0:00:35]} Rxe2 {[%emt 0:00:08]} 28. Rxe2 $11 {[%emt 0:00:05][%mdl 4096] Endgame. KRB-KRN} Ne4 {[%emt 0:03:28]} 29. g4 {[%emt 0:00:45]} (29. c4 $11 {remains equal.}) 29... c5 {[%emt 0:04:07]} (29... Ke6 $17 30. c4 bxc4 31. bxc4 Rf8 32. cxd5+ cxd5) 30. Be5 {[%emt 0:00:30][%cal Oc2c4]} a4 {[%emt 0:00:04]} (30... Ke6 $15) 31. bxa4 {[%emt 0:00:58]} (31. c4 $1 $11 bxc4 32. bxc4) 31... Rxa4 $17 {[%emt 0:04:54]} 32. Re3 {[%emt 0:00:33] [#]} (32. c3 $17 {might work better.}) 32... Ke6 {[%emt 0:00:53]} (32... Nd2 $1 $19 {[%cal Rd2c4] Hoping for ...Nc4+.} 33. Rh3 Nc4+ 34. Kc1 d4 (34... Nxa3 35. Rxh7+ Ke6 36. h4 $15) (34... Rxa3 35. Rxa3 Nxa3 36. Bd6 $11)) 33. Rh3 {[%emt 0:00:20] [#]} (33. Rb3 $1 $15) 33... Ra7 {[%emt 0:00:06]} (33... d4 $142 $1 34. Rxh7 Nd2) 34. Rh6 $2 {[%emt 0:00:41] White does not recover from this.} (34. Bb8 $17 {was worth a try.} Re7 35. f5+ Kf6 (35... gxf5 36. gxf5+ Kd7 37. c3 $15) 36. fxg6 hxg6 37. Rh8) 34... d4 {[%emt 0:01:13] Threatens to win with ...Kd5.} 35. Bh8 $2 {[%emt 0:00:31]} (35. Bb8 {was the crucial defense.} Rf7 36. Kc1) 35... Kd5 $19 {[%emt 0:00:25]} 36. f5 {[%emt 0:00:30]} b4 {[%emt 0:18:29]} 37. axb4 {[%emt 0:00:25]} c4 {[%emt 0:00:01] ( -> ...c3+)} 38. c3 {[%emt 0:00:33]} d3 {[%emt 0:00:08]} 39. fxg6 hxg6 {[%emt 0:00:35]} 40. Rxg6 {[%emt 0:00:00] Weighted Error Value: White=0.66/Black=0.16 (very precise) .  Loses game:     	White=1     	---        Mistake:       	White=6     	Black=4      Inaccurate:     	White=2     	Black=1      OK:         	White=8     	Black=11     Best:        	White=1     	Black=2} 0-1

[Event "Czech Extraliga 2023-24"]
[Site "Czech Republic"]
[Date "2024.04.06"]
[Round "9.7"]
[White "Pachmann, Ales"]
[Black "Kriebel, Tadeas"]
[Result "0-1"]
[ECO "C68"]
[WhiteElo "2306"]
[BlackElo "2512"]
[Annotator "TA"]
[PlyCount "136"]
[EventDate "2023.10.14"]
[EventCountry "CZE"]
[SourceTitle "playchess.com"]
[Source "ChessBase"]
[SourceQuality "1"]
[TimeControl "40/5400+30:1800+30"]

{[%evp 58,136,3,0,0,0,30,22,20,-22,-31,-27,-12,-11,-14,-10,-16,-14,-10,-23,0,-41,-29,-77,-50,-111,-111,-571,-684,-697,-596,-745,-734,-711,-583,-559,-206,-524,-540,-446,-529,-923,-173,-1146,-5,-5,0,0,0,-1463,-1405,-1110,-910,-826,-713,-1177,-1161,-4492,-3575,-1711,-3025,-4134,-3588,-4708,-4435,-4939,-3010,-2299,-1068,-1802,-1505,-29977,-29978,-29977,-29978,-29978,-29979,-29978,-29978,-29977,-29975]} 1. e4 {[%emt 0:00:04]} e5 {[%emt 0:00:37]} 2. Nf3 {[%emt 0:00:09]} Nc6 {[%emt 0:00:06]} 3. Bb5 {[%emt 0:00:14]} a6 {[%emt 0:00:16]} 4. Bxc6 {[%emt 0:00:08]} dxc6 {[%emt 0:00:08]} 5. O-O {[%emt 0:00:09]} Bg4 {[%emt 0:01:34]} 6. h3 {[%emt 0:00:15]} Bh5 {[%emt 0:00:06]} 7. Na3 {[%emt 0:11:56]} f6 {[%emt 0:01:23]} 8. Nc4 {[%emt 0:03:28]} Qd7 {[%emt 0:01:08]} 9. b3 {[%emt 0:11:58]} Bf7 {[%emt 0:07:36]} 10. d4 {[%emt 0:05:02]} exd4 {[%emt 0:08:32]} 11. Qxd4 {[%emt 0:02:18]} Qxd4 {[%emt 0:00:04]} 12. Nxd4 {[%emt 0:00:10]} O-O-O {[%emt 0:01:05]} 13. Bb2 {[%emt 0:01:36]} Nh6 {[%emt 0:15:22]} 14. Ne3 {[%emt 0:05:37]} Bc5 {[%emt 0:01:19]} 15. Rad1 {[%emt 0:03:22]} Rhe8 {[%emt 0:02:22]} 16. f3 {[%emt 0:02:46]} Rd7 {[%emt 0:02:05]} 17. Kf2 {[%emt 0:03:51]} Red8 {[%emt 0:11:11]} 18. c3 {[%emt 0:01:08]} a5 {[%emt 0:00:03]} 19. Ke2 {[%emt 0:08:16]} a4 {[%emt 0:02:46]} 20. bxa4 {[%emt 0:00:17]} Bxa2 {[%emt 0:00:11]} 21. Ra1 {[%emt 0:01:03]} Bg8 {[%emt 0:01:13]} 22. Rfd1 {[%emt 0:04:32]} Bf8 {[%emt 0:09:47]} 23. a5 {[%emt 0:09:37]} c5 {[%emt 0:00:13]} 24. Nb5 {[%emt 0:02:38]} Rxd1 {[%emt 0:00:13]} 25. Rxd1 {[%emt 0:00:07]} Rxd1 {[%emt 0:00:07]} 26. Kxd1 {[%emt 0:00:09]} Nf7 {[%emt 0:01:58]} 27. c4 {[%emt 0:01:30]} c6 {[%emt 0:03:06]} 28. Nc3 {[%emt 0:01:21]} Ne5 {[%emt 0:11:56]} 29. Na4 {[%emt 0:00:32]} Nd7 {[%emt 0:01:15]} (29... Nxc4 $2 $18) 30. Ba3 {[%emt 0:02:21]} Kb8 {[%emt 0:02:49]} 31. Nb6 {[%emt 0:01:30]} Be6 {[%emt 0:00:22]} 32. Nxd7+ {[%emt 0:01:27]} Bxd7 {[%emt 0:00:03]} 33. Nf1 {[%emt 0:01:59]} Be6 {[%emt 0:05:13]} 34. Nd2 {[%emt 0:00:11]} Bd6 {[%emt 0:00:06]} 35. Kc2 {[%emt 0:01:17]} Bc7 {[%emt 0:00:07]} 36. Bxc5 {[%emt 0:01:09]} Bxa5 {[%emt 0:00:04]} 37. Bf8 {[%emt 0:00:50]} g6 {[%emt 0:01:04]} 38. c5 {[%emt 0:01:05]} Kc8 {[%emt 0:01:00]} 39. f4 {[%emt 0:02:12]} Kd7 {[%emt 0:01:27]} 40. Nf3 {[%emt 0:02:20]} (40. g4 $11 {might be stronger.}) 40... Bc7 {[%emt 0:02:23]} 41. e5 {[%emt 0:34:18]} (41. Bg7 $15) 41... Bd5 $17 {[%emt 0:31:26]} 42. Bg7 $2 {[%emt 0:00:00][%mdl 8192] [#]} (42. Kd3 $17) 42... Bxf3 $1 $19 {[%emt 0:00:00]} 43. gxf3 {[%emt 0:00:00]} fxe5 {[%emt 0:00:00]} 44. fxe5 {[%emt 0:00:00]} Ke6 {[%emt 0:00:00]} 45. f4 {[%emt 0:00:00]} Kd5 {[%emt 0:00:00]} 46. Kd3 {[%emt 0:00:00]} Ba5 $2 {[%emt 0:00:00]} (46... Kxc5 47. e6 Kd6 (47... Bxf4 $2 48. e7 $18) (47... Bd6 48. Bf6 $16) 48. Be5+ Kxe6 49. Bxc7 $16) (46... Bd8 47. Bf8 Ba5) 47. Bf8 $2 {[%emt 0:00:00]} (47. e6 {was the crucial defense.} Kxe6 48. Ke4) 47... Bb4 $19 {[%emt 0:00:00]} 48. h4 {[%emt 0:00:00]} h5 {[%emt 0:00:00]} (48... Bxc5 49. Bxc5 Kxc5 50. Ke4 $15) 49. Be7 {[%emt 0:00:00]} Ba3 $2 {[%emt 0:00:00]} ({Stronger than} 49... Bxc5 50. Bxc5 Kxc5 51. Ke4 $11) (49... Be1 50. Ke2 Ba5 (50... Bb4 $2 51. Kd3 $19)) 50. Bd6 $2 {[%emt 0:00:00] [#]} (50. Kc2) 50... Bc1 $2 {[%emt 0:00:00]} (50... Bxc5 51. Bxc5 Kxc5 52. Ke4 $11) (50... Ke6 $1 $19 {...Bb4 is the strong threat.} 51. Ke2 Bb4 (51... Kd5 $2 52. Bf8 $19)) 51. Bc7 $1 $11 {[%emt 0:00:00]} Bb2 {[%emt 0:00:00]} (51... Bxf4 $2 {too greedy.} 52. e6 $18) (51... Ke6 $5 52. Ke4 $8 Bd2 $11) 52. Bd6 {[%emt 0:00:00]} Ba3 {[%emt 0:00:00]} 53. Ke3 $2 {[%emt 0:00:00][%mdl 8192]} (53. Bf8 $11 Bb4 (53... Bxc5 54. Bxc5 Kxc5 55. Ke4 $11) 54. Be7) 53... Bb4 $19 {[%emt 0:02:04]} (53... Bxc5+ 54. Bxc5 Kxc5 55. f5 gxf5 56. Kf4 $17) 54. Kf3 {[%emt 0:00:00]} Be1 {[%emt 0:02:40]} ({Not} 54... Bxc5 55. Bxc5 Kxc5 56. f5 gxf5 57. Kf4 $11) 55. Be7 {[%emt 0:00:00]} Ke6 {[%emt 0:00:15]} 56. Ke2 {[%emt 0:00:59]} Ba5 {[%emt 0:00:23]} 57. Bf8 {[%emt 0:02:37]} Bd8 {[%emt 0:00:04]} 58. Kf3 {[%emt 0:00:38]} Bxh4 {[%emt 0:00:06]} (58... Kf7 $142 59. Bd6 Bxh4) 59. Bd6 {[%emt 0:00:37]} Kf5 {[%emt 0:00:20]} 60. Bf8 {[%emt 0:00:56]} Be1 {[%emt 0:00:11]} 61. Be7 {[%emt 0:01:02]} Ke6 {[%emt 0:01:42]} 62. Bd8 {[%emt 0:00:25]} Bb4 {[%emt 0:00:12]} 63. Bb6 {[%emt 0:00:18]} Kf5 {[%emt 0:00:15]} 64. Kg3 {[%emt 0:00:21]} Bd2 {[%emt 0:00:15]} 65. Kf3 {[%emt 0:01:14]} Bxf4 {[%emt 0:00:09]} 66. e6 {[%emt 0:00:11]} Bg5 $1 {[%emt 0:00:04]} 67. Bc7 {[%emt 0:00:05]} Kxe6 {[%emt 0:00:05]} 68. Ke4 {[%emt 0:00:08]} Be7 {[%emt 0:00:12]} 0-1

[Event "Czech Extraliga 2023-24"]
[Site "Czech Republic"]
[Date "2024.04.06"]
[Round "9.7"]
[White "Sorm, Daniel"]
[Black "Pulpan, Jakub"]
[Result "0-1"]
[ECO "D05"]
[WhiteElo "2273"]
[BlackElo "2378"]
[Annotator "RC"]
[PlyCount "50"]
[EventDate "2023.10.14"]
[EventCountry "CZE"]
[SourceTitle "playchess.com"]
[Source "ChessBase"]
[SourceQuality "1"]
[TimeControl "40/5400+30:1800+30"]

1. d4 {[%emt 0:00:08]} Nf6 {[%emt 0:02:11]} 2. Nf3 {[%emt 0:00:28]} e6 {[%emt 0:02:21]} 3. e3 {[%emt 0:01:21]} b6 {[%emt 0:03:36]} 4. Bd3 {[%emt 0:00:35]} Bb7 {[%emt 0:01:26]} 5. O-O {[%emt 0:00:21]} d5 {[%emt 0:06:42]} 6. Nbd2 {[%emt 0:04:36]} c5 {[%emt 0:05:52]} 7. b3 {[%emt 0:00:55]} Bd6 {[%emt 0:10:00]} 8. Bb2 {[%emt 0:00:36]} Qc7 {[%emt 0:04:12]} 9. Ne5 {[%emt 0:08:44]} Nc6 {[%emt 0:08:50]} 10. f4 {[%emt 0:00:25]} a6 {[%emt 0:01:56]} 11. a3 {[%emt 0:10:33]} b5 {[%emt 0:02:28]} 12. dxc5 {[%emt 0:10:57]} Bxc5 {[%emt 0:11:43]} 13. Qe2 {[%emt 0:11:24]} d4 {[%emt 0:06:30]} 14. Nxc6 {[%emt 0:02:06]} dxe3 {[%emt 0:02:59]} 15. Ne4 {[%emt 0:11:39]} Nxe4 {[%emt 0:07:07]} 16. Bxe4 {[%emt 0:00:13]} Bxc6 {[%emt 0:00:12]} 17. Bxc6+ {[%emt 0:00:15]} Qxc6 {[%emt 0:00:04]} 18. Bxg7 {[%emt 0:00:55]} Rg8 {[%emt 0:00:24]} 19. Bf6 {[%emt 0:00:27]} Rg6 {[%emt 0:07:02]} 20. Bh4 {[%emt 0:00:45]} Qe4 {[%emt 0:01:04]} 21. c4 {[%emt 0:16:40]} bxc4 {[%emt 0:01:04]} 22. Rac1 {[%emt 0:00:09]} Rxg2+ {[%emt 0:04:42]} 23. Qxg2 {[%emt 0:00:11]} e2+ {[%emt 0:00:03]} 24. Bf2 {[%emt 0:02:52]} Qxg2+ {[%emt 0:00:54]} 25. Kxg2 {[%emt 0:00:08]} exf1=Q+ {[%emt 0:00:06]} 0-1

[Event "Czech Extraliga 2023-24"]
[Site "Czech Republic"]
[Date "2024.04.06"]
[Round "9.8"]
[White "Cerveny, Martin"]
[Black "Liska, Jiri"]
[Result "1-0"]
[ECO "D91"]
[WhiteElo "2367"]
[BlackElo "2271"]
[Annotator "RC"]
[PlyCount "71"]
[EventDate "2023.10.14"]
[EventCountry "CZE"]
[SourceTitle "playchess.com"]
[Source "ChessBase"]
[SourceQuality "1"]
[TimeControl "40/5400+30:1800+30"]

1. d4 {[%emt 0:00:05]} Nf6 {[%emt 0:00:17]} 2. c4 {[%emt 0:00:25]} g6 {[%emt 0:00:20]} 3. Nc3 {[%emt 0:00:07]} d5 {[%emt 0:00:21]} 4. Nf3 {[%emt 0:00:36]} Bg7 {[%emt 0:00:34]} 5. Bg5 {[%emt 0:00:09]} Ne4 {[%emt 0:00:27]} 6. cxd5 {[%emt 0:00:07]} Nxg5 {[%emt 0:00:25]} 7. Nxg5 {[%emt 0:00:05]} c6 {[%emt 0:00:27]} 8. h4 {[%emt 0:04:26]} cxd5 {[%emt 0:05:46]} 9. Qb3 {[%emt 0:01:30]} O-O {[%emt 0:05:23]} 10. e3 {[%emt 0:01:24]} Nc6 {[%emt 0:11:55]} 11. f4 {[%emt 0:00:35]} f6 {[%emt 0:20:42]} 12. Nf3 {[%emt 0:01:08]} e5 {[%emt 0:02:08]} 13. h5 {[%emt 0:14:43]} exd4 {[%emt 0:03:04]} 14. Qxd5+ {[%emt 0:04:04]} Qxd5 {[%emt 0:01:25]} 15. Nxd5 {[%emt 0:00:03]} Rd8 {[%emt 0:07:20]} 16. Nc7 {[%emt 0:03:05]} Rb8 {[%emt 0:00:23]} 17. Bc4+ {[%emt 0:02:49]} Kf8 {[%emt 0:01:16]} 18. hxg6 {[%emt 0:00:45]} hxg6 {[%emt 0:00:16]} 19. Nh4 {[%emt 0:00:52]} Ne7 {[%emt 0:02:05]} 20. e4 {[%emt 0:02:59]} b5 {[%emt 0:06:40]} 21. Bb3 {[%emt 0:01:34]} a5 {[%emt 0:00:55]} 22. Rc1 {[%emt 0:08:59]} d3 {[%emt 0:05:49]} 23. Kd2 {[%emt 0:00:27]} a4 {[%emt 0:09:42]} 24. Be6 {[%emt 0:04:09]} Bb7 {[%emt 0:04:02]} 25. Bd5 {[%emt 0:05:20]} Bxd5 {[%emt 0:01:02]} 26. Nxd5 {[%emt 0:00:18]} Nxd5 {[%emt 0:01:47]} 27. exd5 {[%emt 0:00:02]} Rb7 {[%emt 0:01:41]} 28. Rc5 {[%emt 0:17:55]} Kf7 {[%emt 0:00:36]} 29. f5 {[%emt 0:00:06]} g5 {[%emt 0:01:00]} 30. Ng6 {[%emt 0:00:21]} Rbd7 {[%emt 0:01:47]} 31. Re1 {[%emt 0:05:53]} g4 {[%emt 0:00:10]} 32. Re4 {[%emt 0:03:04]} Bh6+ {[%emt 0:00:36]} 33. Kd1 {[%emt 0:01:30]} d2 {[%emt 0:02:17]} 34. d6 Rxd6 {[%emt 0:01:59]} 35. Re7+ {[%emt 0:01:19]} Kg8 {[%emt 0:00:04]} 36. Rcc7 1-0

[Event "Czech Extraliga 2023-24"]
[Site "Czech Republic"]
[Date "2024.04.06"]
[Round "9.8"]
[White "Malik, Jan"]
[Black "Rabatin, Jakub"]
[Result "1/2-1/2"]
[ECO "B12"]
[WhiteElo "2260"]
[BlackElo "2293"]
[Annotator "RC"]
[PlyCount "96"]
[EventDate "2023.10.14"]
[EventCountry "CZE"]
[SourceTitle "playchess.com"]
[Source "ChessBase"]
[SourceQuality "1"]
[TimeControl "40/5400+30:1800+30"]

1. e4 {[%emt 0:00:04]} c6 {[%emt 0:00:04]} 2. d4 {[%emt 0:00:09]} d5 {[%emt 0:00:03]} 3. e5 {[%emt 0:00:06]} Bf5 {[%emt 0:00:05]} 4. Nf3 {[%emt 0:00:09]} e6 {[%emt 0:00:05]} 5. Be2 {[%emt 0:00:09]} c5 {[%emt 0:00:06]} 6. Be3 {[%emt 0:02:29]} cxd4 {[%emt 0:00:06]} 7. Nxd4 {[%emt 0:00:50]} Ne7 {[%emt 0:00:08]} 8. O-O {[%emt 0:06:40]} Nbc6 {[%emt 0:03:36]} 9. c4 {[%emt 0:09:11]} Nxd4 {[%emt 0:02:43]} 10. Bxd4 {[%emt 0:02:48]} dxc4 {[%emt 0:01:25]} 11. Qa4+ {[%emt 0:06:02]} Nc6 {[%emt 0:04:04]} 12. Rd1 {[%emt 0:08:13]} Bd3 {[%emt 0:04:33]} 13. Bxd3 {[%emt 0:11:51]} cxd3 {[%emt 0:27:09]} 14. Be3 {[%emt 0:06:05]} Be7 {[%emt 0:04:29]} 15. Qg4 {[%emt 0:16:18]} g6 {[%emt 0:13:30]} 16. Qe4 {[%emt 0:04:14]} Qa5 {[%emt 0:02:16]} 17. Nc3 {[%emt 0:01:57]} Qxe5 {[%emt 0:04:19]} 18. Qxe5 {[%emt 0:02:26]} Nxe5 {[%emt 0:01:33]} 19. Bd4 {[%emt 0:01:03]} Bf6 {[%emt 0:01:26]} 20. Ne4 {[%emt 0:02:32]} Nf3+ {[%emt 0:00:55]} 21. gxf3 {[%emt 0:00:05]} Bxd4 {[%emt 0:00:04]} 22. Rxd3 {[%emt 0:02:15]} Be5 {[%emt 0:07:43]} 23. Rad1 {[%emt 0:00:15]} O-O {[%emt 0:01:11]} 24. Rd7 {[%emt 0:00:07]} b6 {[%emt 0:04:22]} 25. b3 {[%emt 0:00:04]} h6 {[%emt 0:01:18]} 26. Rb7 {[%emt 0:02:41]} f5 {[%emt 0:09:53]} 27. Ng3 {[%emt 0:00:33]} Rf7 {[%emt 0:00:29]} 28. Rdd7 {[%emt 0:00:41]} Rxd7 {[%emt 0:00:13]} 29. Rxd7 {[%emt 0:00:02]} a5 {[%emt 0:01:30]} 30. Re7 {[%emt 0:01:00]} Bd4 {[%emt 0:01:03]} 31. Rxe6 {[%emt 0:00:13]} Kf7 {[%emt 0:00:12]} 32. Rc6 {[%emt 0:04:36]} Re8 {[%emt 0:04:11]} 33. Kf1 {[%emt 0:01:39]} Bc5 {[%emt 0:00:25]} 34. Rc7+ {[%emt 0:01:31]} Kf6 {[%emt 0:00:41]} 35. Ne2 {[%emt 0:02:22]} Rd8 {[%emt 0:00:31]} 36. Rc6+ {[%emt 0:00:38]} Kf7 {[%emt 0:00:22]} 37. Rc7+ {[%emt 0:00:28]} Kf6 {[%emt 0:01:08]} 38. Rc6+ {[%emt 0:00:06]} Rd6 {[%emt 0:00:49]} 39. Rxd6+ {[%emt 0:00:34]} Bxd6 {[%emt 0:00:06]} 40. f4 {[%emt 0:04:35]} Ke6 {[%emt 0:00:27]} 41. Ke1 {[%emt 0:30:53]} Kd5 {[%emt 0:06:35]} 42. f3 {[%emt 0:00:00]} Bb4+ {[%emt 0:15:17]} 43. Kd1 {[%emt 0:00:00]} Bc5 {[%emt 0:02:04]} 44. Kd2 {[%emt 0:00:00]} Bf2 {[%emt 0:00:20]} 45. Kd3 {[%emt 0:00:00]} Be1 {[%emt 0:01:58]} 46. Nc1 {[%emt 0:00:00]} Bb4 {[%emt 0:00:27]} 47. Ne2 {[%emt 0:00:00]} Bd6 {[%emt 0:00:07]} 48. h3 {[%emt 0:00:00]} b5 {[%emt 0:01:52]} 1/2-1/2

[Event "Czech Extraliga 2023-24"]
[Site "Czech Republic"]
[Date "2024.04.06"]
[Round "9.8"]
[White "Michalek, Jan"]
[Black "Vavra, Pavel"]
[Result "0-1"]
[ECO "B40"]
[WhiteElo "2247"]
[BlackElo "2310"]
[Annotator "RC"]
[PlyCount "56"]
[EventDate "2023.10.14"]
[EventCountry "CZE"]
[SourceTitle "playchess.com"]
[Source "ChessBase"]
[SourceQuality "1"]
[TimeControl "40/5400+30:1800+30"]

1. e4 {[%emt 0:00:05]} c5 {[%emt 0:00:09]} 2. Nf3 {[%emt 0:00:27]} e6 {[%emt 0:00:07]} 3. c4 {[%emt 0:04:47]} Nc6 {[%emt 0:01:27]} 4. Nc3 {[%emt 0:00:49]} e5 {[%emt 0:02:47]} 5. d3 {[%emt 0:00:45]} d6 {[%emt 0:00:12]} 6. Be2 {[%emt 0:01:09]} f5 {[%emt 0:07:36]} 7. Nd5 {[%emt 0:15:13]} Nf6 {[%emt 0:04:13]} 8. Bg5 {[%emt 0:01:18]} Be7 {[%emt 0:00:07]} 9. Bxf6 {[%emt 0:02:51]} Bxf6 {[%emt 0:00:08]} 10. h3 {[%emt 0:04:12]} O-O {[%emt 0:09:16]} 11. a3 {[%emt 0:02:53]} Be6 {[%emt 0:04:27]} 12. Rb1 {[%emt 0:04:20]} Rb8 {[%emt 0:11:24]} 13. O-O {[%emt 0:07:04]} b5 {[%emt 0:04:10]} 14. cxb5 {[%emt 0:08:12]} Bxd5 {[%emt 0:01:53]} 15. exd5 {[%emt 0:01:24]} Ne7 {[%emt 0:00:19]} 16. a4 {[%emt 0:07:32]} Kh8 {[%emt 0:01:32]} 17. b4 {[%emt 0:00:14]} Nxd5 {[%emt 0:04:41]} 18. bxc5 {[%emt 0:02:47]} Nc3 {[%emt 0:05:11]} 19. Qc2 {[%emt 0:00:15]} Nxb1 {[%emt 0:05:24]} 20. Rxb1 {[%emt 0:00:06]} dxc5 {[%emt 0:00:31]} 21. Qxc5 {[%emt 0:00:42]} e4 {[%emt 0:01:11]} 22. Ne1 {[%emt 0:00:56]} Bd4 {[%emt 0:00:39]} 23. Qb4 {[%emt 0:01:23]} Qb6 {[%emt 0:01:02]} 24. Kh1 {[%emt 0:01:10]} Bxf2 {[%emt 0:00:38]} 25. dxe4 {[%emt 0:02:33]} fxe4 {[%emt 0:00:47]} 26. Qxe4 {[%emt 0:01:07]} Rbe8 {[%emt 0:00:17]} 27. Qc4 {[%emt 0:02:37]} Qe3 {[%emt 0:01:34]} 28. Bh5 {[%emt 0:00:34]} Re4 {[%emt 0:01:14]} 0-1